Cogmind - Beta 13 @@@ ROGUE MODE // 2024.05.04 @ 22:02:29 Player: DreamweaverKara Result: Destroyed by Y-45 Defender with Beam Rifle Performance ------------- Evolutions (2) 1000 Regions Visited (4) 800 Robots Destroyed (25) 125 Value Destroyed (537) 537 Prototype IDs (2) 40 Alien Tech Used (0) 0 Bonus (0) 0 TOTAL SCORE: 2502 Bonus ------- None Cogmind --------- Core Integrity 0/550 Matter 69/300 Energy 100/100 System Corruption 0% Temperature Cool (9) Movement Walking (130) Location -8/Materials Parts ------- > --- POWER (1) -------- (None) > --- PROPULSION (4) --- Titanium Leg > --- UTILITY (4) ------ Improved Terrain Scan Processor > --- WEAPON (2) ------- (None) > --- INVENTORY (5) ---- Light Nuclear Core Light Treads Hardlight Generator Shield Generator Improved Datajack Peak State ------------ > --- POWER ------------ Ion Engine > --- PROPULSION ------- Flight Unit VTOL Module VTOL Module VTOL Module > --- UTILITY ---------- Improved Terrain Scan Processor Targeting Computer Hardlight Generator Shield Generator > --- WEAPON ----------- Shotgun Mini Grenade Launcher > --- INVENTORY -------- Nuclear Core Light Nuclear Core Improved EM Shotgun Improved Datajack [Rating: 22] Favorites ----------- Power Ion Engine Engine Ion Engine Power Core Light Nuclear Core Propulsion Light Treads Treads Light Treads Leg Aluminum Leg Hover Unit Improved Hover Unit Flight Unit VTOL Module Utility Small Storage Unit Device Hardlight Generator Storage Small Storage Unit Processor Targeting Computer Protection Light Armor Plating Weapon Shotgun Energy Gun Advanced Beam Rifle Ballistic Gun Shotgun Launcher Mini Grenade Launcher Special Melee Weapon Improved Datajack Build | -11 -10 -9 -9 -8 ------- Run | Yrd Mat Mat Min Mat Slots Evolved 4 | . . 2 . 2 Power . | . . . . . Propulsion 2 | . . 1 . 1 Utility 2 | . . 1 . 1 Weapon . | . . . . . Parts Attached 40 | 6 5 14 4 11 Power 3 | 1 . 1 . 1 Engine 2 | 1 . 1 . . Core 1 | . . . . 1 Reactor . | . . . . . Propulsion 15 | 2 1 8 2 2 Treads 3 | . . 3 . . Leg 4 | 2 1 . . 1 Wheel . | . . . . . Hover 1 | . . . 1 . Flight 7 | . . 5 1 1 Utility 10 | 1 2 3 1 3 Device 5 | . 2 2 . 1 Storage 1 | 1 . . . . Processor 2 | . . . 1 1 Hackware . | . . . . . Protection 2 | . . 1 . 1 Artifact . | . . . . . Weapon 12 | 2 2 2 1 5 Energy Gun 5 | . 2 1 . 2 Energy Cannon . | . . . . . Ballistic Gun 4 | 2 . 1 . 1 Ballistic Cannon . | . . . . . Launcher 2 | . . . 1 1 Special Weapon . | . . . . . Impact Weapon . | . . . . . Slashing Weapon . | . . . . . Piercing Weapon . | . . . . . Special Melee Weapon 1 | . . . . 1 Unidentified Prototypes 1 | . . 1 . . Parts Lost 18 | . 7 . . 11 Power 2 | . 1 . . 1 Propulsion 7 | . 3 . . 4 Utility 3 | . 1 . . 2 Weapon 6 | . 2 . . 4 Highest Loss Streak 11 | . 6 . . 11 To Critical Strikes . | . . . . . Average Slot Usage (%) 81 | . 90 82 81 73 Engine 10 | . 14 10 11 6 Treads 11 | . . 23 . . Leg 4 | . 23 . . 1 Flight 10 | . . 5 33 24 Device 8 | . 12 6 11 9 Storage 7 | . 14 10 . . Processor 3 | . . . 4 12 Protection 3 | . . 7 . 1 Energy Gun 6 | . 10 8 4 . Ballistic Gun 10 | . 14 10 11 6 Launcher 2 | . . . 6 8 Naked Turns . | . . . . . Heaviest Build 23 | 13 16 23 12 16 Greatest Support 60 | 20 20 60 12 17 Greatest Overweight (x) 5 | . 1 5 . 1 Average Overweight (x) . | . . . . . Largest Inventory Capacity 8 | 8 8 8 5 5 Average Capacity 6 | 6 8 7 5 5 Most Carried 8 | 6 8 8 5 5 Average Carried 5 | 3 7 6 4 4 Final Capacity 8 | 8 8 5 5 5 Final Carried 7 | 6 7 5 4 5 Class Distribution -------------------- 71% | Mutant 28% | Sprinter Dominant Class ---------------- Mutant | -10/Materials Mutant | -9/Materials Sprinter | -9/Mines Sprinter | -8/Materials Resources | -11 -10 -9 -9 -8 ----------- Run | Yrd Mat Mat Min Mat Matter Collected 562 | 211 138 124 30 59 Remotely . | . . . . . Salvage Created 744 | . 262 220 . 262 Parts 48 | . 14 16 . 18 Haulers Intercepted 1 | . . . . 1 Recyclers Shooed . | . . . . . Parts Field Recycled . | . . . . . Retrieved Matter . | . . . . . Parts Self-Destructed . | . . . . . Prevented . | . . . . . Kills | -11 -10 -9 -9 -8 ------- Run | Yrd Mat Mat Min Mat Combat Hostiles Destroyed 18 | . 8 5 . 5 Guns 15 | . 8 5 . 2 AOE 3 | . . . . 3 Classes Destroyed 8 | . 3 2 . 3 Worker 2 | . 1 . . 1 Builder 1 | . . . . 1 Hauler 1 | . . . . 1 Recycler 2 | . . 1 . 1 Watcher 1 | . . . . 1 Swarmer 8 | . 3 3 . 2 Grunt 8 | . 5 1 . 2 Sentry 2 | . . 1 . 1 Best Kill Streak 8 | . 8 3 . 4 Combat Bots Only 5 | . 5 3 . 2 Max Kills in Single Turn 2 | . 1 1 . 2 Gunslinging . | . . . . . Exploded 2 | . . . . 2 Melee . | . . . . . Uniques/NPCs Destroyed . | . . . . . Combat | -11 -10 -9 -9 -8 -------- Run | Yrd Mat Mat Min Mat Hostile Shots Fired 238 | . 86 21 . 131 Missed 68 | . 22 8 . 38 Damage Taken 2194 | . 733 114 . 1347 Core 670 | . 94 13 . 563 Absorbed by Shields 131 | . . 4 . 127 Redirected to Shielding 106 | . . . . 106 Core Remaining (%) 86 | 100 62 . 96 . Volleys Fired 52 | . 23 8 . 21 Largest 2 | . 2 2 . 2 Hottest 115 | . 115 84 . 75 Shots Fired 91 | . 46 16 . 29 Gun 78 | . 46 16 . 16 Cannon . | . . . . . Launcher 13 | . . . . 13 Special . | . . . . . Kinetic 42 | . 22 8 . 12 Thermal 32 | . 24 8 . . Explosive 13 | . . . . 13 Electromagnetic 4 | . . . . 4 Robot Hit Streak 13 | . 9 13 . 11 Robot Miss Streak 2 | . 2 2 . 2 Penetration Max . | . . . . . Secondary Targets 1 | . 1 . . . Max Gunslinging Chain 1 | . 1 . . . Shots Hit Robots 69 | . 33 10 . 26 Core Hits 44 | . 14 9 . 21 Critical Kills 1 | . . 1 . . Critical Parts Destroyed . | . . . . . Critical Strikes 5 | . 4 1 . . Burn 4 | . 4 . . . Destroy 1 | . . 1 . . Melee Attacks 1 | . . . . 1 Impact . | . . . . . Slashing . | . . . . . Piercing . | . . . . . Sneak Attacks . | . . . . . Combat Hostiles . | . . . . . Follow-up Attacks . | . . . . . Damage Inflicted 1579 | . 446 184 . 949 Guns 835 | . 432 184 . 219 Cannons . | . . . . . Explosions 730 | . . . . 730 Melee . | . . . . . Ramming 14 | . 14 . . . Kinetic 428 | . 154 104 . 170 Thermal 358 | . 278 80 . . Explosive 730 | . . . . 730 Electromagnetic 49 | . . . . 49 Impact . | . . . . . Slashing . | . . . . . Piercing . | . . . . . Highest Corruption . | . . . . . Average Corruption . | . . . . . Corruption Purged . | . . . . . Corruption Blocked . | . . . . . Overload Shots . | . . . . . Overflow Damage 33 | . . . . 33 Projectiles . | . . . . . Explosions 33 | . . . . 33 Melee . | . . . . . Knockbacks . | . . . . . Impact . | . . . . . Kinetic . | . . . . . Secondary . | . . . . . Self-Inflicted Damage 313 | . 1 . . 312 Shots 10 | . . . . 10 Rammed 1 | . 1 . . . Targets Rammed 9 | . 9 . . . Kicked 8 | . 8 . . . Crushed . | . . . . . Highest Temperature 234 | . 234 72 . 11 Average Temperature 71 | . 114 27 . 5 Received Heat Transfer 642 | . 228 21 . 393 Siege Activations . | . . . . . Robots Corrupted . | . . . . . Combat Hostiles . | . . . . . Parts Fried . | . . . . . Impact Corruptions . | . . . . . Robots Melted . | . . . . . Combat Hostiles . | . . . . . Parts Melted 3 | . 3 . . . Heat Transferred 1147 | . 999 148 . . Parts Sabotaged . | . . . . . Parts Stolen . | . . . . . Parts Stripped . | . . . . . Power Chain Reactions . | . . . . . Alert | -11 -10 -9 -9 -8 ------- Run | Yrd Mat Mat Min Mat Peak Influence 310 | . 229 210 26 310 Initial 75 | . . 75 21 9 Average 99 | . 92 120 21 109 Maximum Alert Level 1 | . 1 1 . 1 Low Security (%) 74 | 100 88 61 100 76 Level 1 25 | . 11 38 . 23 Level 2 . | . . . . . Level 3 . | . . . . . Level 4 . | . . . . . Level 5 . | . . . . . High Security . | . . . . . Max Security . | . . . . . Squads Dispatched 5 | . 2 . . 3 Investigation 2 | . 1 . . 1 Extermination . | . . . . . Reinforcement 3 | . 1 . . 2 Assault . | . . . . . Garrison . | . . . . . Intercept . | . . . . . Searches Triggered . | . . . . . Construction Impeded . | . . . . . Haulers Reinforced . | . . . . . Active Scanning Responses . | . . . . . Cargo Convoy Interrupts . | . . . . . Stealth | -11 -10 -9 -9 -8 --------- Run | Yrd Mat Mat Min Mat Distress Signals 5 | . 1 3 . 1 Communications Jammed . | . . . . . Distress Signals . | . . . . . Times Spotted 52 | . 16 10 . 26 Peak Tracking Total 11 | . 8 4 . 11 Tactical Retreats 6 | . . . . 6 Traps | -11 -10 -9 -9 -8 ------- Run | Yrd Mat Mat Min Mat Traps Triggered 2 | . 2 . . . Indirectly . | . . . . . Trap Hack Attempts . | . . . . . Triggered . | . . . . . Disarmed . | . . . . . Reprogrammed . | . . . . . Reused . | . . . . . Traps Extracted . | . . . . . Installed . | . . . . . Triggered . | . . . . . Machines | -11 -10 -9 -9 -8 ---------- Run | Yrd Mat Mat Min Mat Machines Disabled 1 | . . . . 1 Max in Single Turn 1 | . . . . 1 Machines Repaired . | . . . . . Machines Dismantled . | . . . . . Machines Sabotaged . | . . . . . Overloaded Fab Kills . | . . . . . Hacking | -11 -10 -9 -9 -8 --------- Run | Yrd Mat Mat Min Mat Machines Accessed 8 | . 1 3 1 3 Terminals 7 | . 1 2 1 3 Fabricators . | . . . . . Repair Stations . | . . . . . Recycling Units . | . . . . . Scanalyzers 1 | . . 1 . . Garrison Access . | . . . . . Total Hacks 27 | . 3 8 6 10 Successful 17 | . 2 5 4 6 Failed 10 | . 1 3 2 4 Catastrophic 3 | . . 2 . 1 Database Lockouts . | . . . . . Manual . | . . . . . Terminals 25 | . 3 6 6 10 Fabricators . | . . . . . Repair Stations . | . . . . . Recycling Units . | . . . . . Scanalyzers 2 | . . 2 . . Garrison Access . | . . . . . Terminal Hacks 15 | . 2 3 4 6 Record 10 | . 2 3 4 1 Branch Access Points 1 | . . . . 1 Emergency Access Points 1 | . . . . 1 Terminal Index 1 | . . . . 1 Unreport Threat 1 | . . . . 1 Zone Layout 1 | . . . . 1 Fabricator Hacks . | . . . . . Repair Station Hacks . | . . . . . Recycling Unit Hacks . | . . . . . Scanalyzer 2 | . . 2 . . Insert Component 1 | . . 1 . . Analyze 1 | . . 1 . . Garrison Access Hacks . | . . . . . Unauthorized Hacks . | . . . . . Terminals . | . . . . . Fabricators . | . . . . . Repair Stations . | . . . . . Recycling Units . | . . . . . Scanalyzers . | . . . . . Garrison Access . | . . . . . Data Cores Recovered . | . . . . . Used . | . . . . . Hacking Detections 7 | . 1 2 1 3 Full Trace Events 2 | . 1 . . 1 Feedback Events . | . . . . . Feedback Blocked . | . . . . . Robot Schematics Acquired . | . . . . . Robots Built . | . . . . . Authchips . | . . . . . Time . | . . . . . Total Robot Build Rating . | . . . . . Part Schematics Acquired 1 | . . 1 . . Parts Built . | . . . . . Authchips . | . . . . . Time . | . . . . . Total Part Build Rating . | . . . . . Parts Repaired . | . . . . . Time . | . . . . . Parts Recycled . | . . . . . Recycled Matter . | . . . . . Retrieved Matter . | . . . . . Retrieved Components . | . . . . . Parts Scanalyzed 1 | . . 1 . . Part Schematics Acquired 1 | . . 1 . . Parts Damaged . | . . . . . Bothacking | -11 -10 -9 -9 -8 ------------ Run | Yrd Mat Mat Min Mat Used RIF Installer . | . . . . . Robots Hacked 1 | . . . . 1 Non-combat . | . . . . . Combat 1 | . . . . 1 Robot Hacks Applied 1 | . . . . 1 parse_system 1 | . . . . 1 Relay Couplers Released . | . . . . . Fabnet Peak Effective % . | . . . . . Robots Rewired . | . . . . . Allies Hacked . | . . . . . Hacks Repelled . | . . . . . Allies | -11 -10 -9 -9 -8 -------- Run | Yrd Mat Mat Min Mat Total Allies . | . . . . . Largest Group . | . . . . . Highest-Rated Group . | . . . . . Highest-Rated Ally . | . . . . . Total Orders . | . . . . . Ally Attacks . | . . . . . Total Damage . | . . . . . Kills . | . . . . . Allies Corrupted . | . . . . . Allies Melted . | . . . . . Intel | -11 -10 -9 -9 -8 ------- Run | Yrd Mat Mat Min Mat Robot Analysis Total . | . . . . . Derelict Logs Recovered 1 | . . . 1 . Drone Launches . | . . . . . Drone Recoveries . | . . . . . Exploration | -11 -10 -9 -9 -8 ------------- Run | Yrd Mat Mat Min Mat Turns Passed 1216 | 91 227 543 52 303 Spaces Moved 1072 | 68 104 406 152 342 Core 14 | 11 2 1 . . Treads 226 | . . 226 . . Legs 172 | 57 102 . . 13 Wheels . | . . . . . Hover . | . . . . . Flight 660 | . . 179 152 329 Fastest Speed 27 | 50 100 29 29 27 Average Speed 75 | 108 125 107 29 36 Slowest Speed 455 | 120 190 455 29 130 Overloaded Moves . | . . . . . Propulsion Burnouts . | . . . . . Robots Hopped 4 | . . 1 3 . Cave-ins Triggered . | . . . . . Exploration Rate (%) 30 | 4 18 37 49 46 Regions Visited 4 Branch Regions 1 Pre-discovered Areas . | . . . . . Known Exits Taken . | . . . . . Unknown Exits Taken 4 | 1 1 1 1 . Scrap Searched 3 | . . . 3 . Spaces Dug . | . . . . . Terrain Destroyed 76 | . . . . 76 Melee . | . . . . . Projectile . | . . . . . AOE 76 | . . . . 76 Terrain Rammed . | . . . . . Walls Destroyed . | . . . . . Machines Disabled . | . . . . . Actions | -11 -10 -9 -9 -8 --------- Run | Yrd Mat Mat Min Mat Total 1385 | 85 156 498 155 491 Wait 153 | . 5 45 . 103 Move 1061 | 67 103 403 146 342 Hop 3 | . . 1 2 . Pick Up 40 | 12 6 14 1 7 Fast Attach 7 | . 2 1 1 3 Attach 26 | 6 3 11 1 5 Detach 4 | . . 2 . 2 Swap 7 | . . 2 2 3 Drop 22 | . 5 11 2 4 Fire 52 | . 23 8 . 21 Melee 1 | . . . . 1 Ram 1 | . 1 . . . Kick 8 | . 8 . . . Crush . | . . . . . Escape Stasis . | . . . . . Rewire . | . . . . . Trap . | . . . . . Miscellaneous . | . . . . . Route ------- -11/Scrapyard -10/Materials -9/Materials -9/Mines -8/Materials History --------- Turn | Location | Event 4 | -11/Scrapyard | Discovered new exit (range 15) 92 | -11/Scrapyard | Entered Materials 300 | -10/Materials | Discovered new exit (range 9) 304 | -10/Materials | Build established: Mutant 319 | -10/Materials | Entered another Materials area 319 | -9/Materials | Evolved 2 slots: Propulsion x1, Utility x1 347 | -9/Materials | Lost 6 parts (1p2n1u2w) 830 | -9/Materials | Discovered new exit (range 16) 862 | -9/Materials | Entered Mines 892 | -9/Mines | Learned Materials trap positions 905 | -9/Mines | Discovered new exit (range 8) 914 | -9/Mines | Entered Materials 914 | -8/Materials | Evolved 2 slots: Propulsion x1, Utility x1 915 | -8/Materials | Loaded intel: 24 trap records 1083 | -8/Materials | Build established: Sprinter 1199 | -8/Materials | Core integrity fell below 50% 1212 | -8/Materials | Core integrity fell below 20% 1217 | -8/Materials | Destroyed by Y-45 Defender with Beam Rifle Last Messages --------------- 01184_ Destroyed Flight Unit. 01189_ Acquired Lgt. Treads. 01191_ R-06 Scavenger inserts Nuclear Core into recycling unit. 01192_ Imp. EM Shotgun destroyed. 01192_ Destroyed Imp. EM Shotgun. 01192_ K-01 Serf cleans the Recycling Unit. 01193_ Y-45 Defender IFF system glitched. 01197_ A-02 Transporter destroyed. 01201_ Imp. Propulsion Shielding destroyed. 01203_ R-06 Scavenger destroyed. 01204_ The unstable cave ceiling collapses. 01204_ Mni. Grenade Launcher destroyed. 01206_ Acquired Hvy. Assault Rifle. 01209_ K-01 Serf collects debris. 01210_ Y-45 Defender misfires. 01212_ Targeting Computer destroyed. 01212_ Hvy. Assault Rifle destroyed. 01215_ The unstable cave ceiling collapses. 01216_ Critical hit (Burn: +37). Map ----- +----------------------------------------------------+ | | | | | | | | | | | | | | | | | | | | | | | | | | | | | | | | | | | | | ?????????????????????????????????????????????????? | | ?????????????????????????????????????????????????? | | ?????????????????????????????????????????????????? | | ????????????????????????????????################?? | | ?????????????????????????????### # # ### | | ?????????????????????????????# # | | ?????????????????############# t | | ????????????????# g@ s = | | ????????????????# ########### *Y Y | | ????????????????# ?########## %= # | | ????????????????# ?# """ # # ### | | ?????????????#### ## """ # ! ##########?? | | ????????????? # """ #???# | | ?????????????? # """ """ #???# | | ??????????????? # = "" # """ # """ #???# | | ???????????????# # Y" # """ # """ #???# " | | ???????????????# # "" # # #???# " | | ???????????????# # ######## #???# " | | ???????????????# #####+####### #####+####### | | ???????????????# T + " | | ???????????????# ^ ^ # " | | ???????????????# ^ # " | | ???????????????## ###### """" + | | ????????????????# # [ # """" #######+## ### | | ????????????????# #? + ! """" #?# ] # #T# | | ????????????????# #??? # #?# =# | | ????????????????# #???"#^ #?#""" ######## | | ????????????????# #???"# """" #?#"T !#??????? | | ????????????????# #???"#[ """" #?#""" #??????? | | #???????????????# #???"# """" #?# #??????? | | #???????????????#=#???"# #?######+#??????? | | #???????????????# #??? #[ #??????# #?###### | +----------------------------------------------------+ Best States ------------- Heat Dissipation 35 Energy Generation 14 Energy Capacity 250 Matter Stores 300 Matter Capacity 300 Sight Range 16 Robot Scan Range 14 Terrain Scan Density 110 Armor Coverage 150 Propulsion Shielding 66 Evasion (%) 64 Targeting Accuracy 5 Recoil Reduction 3 Item Schematics ----------------- Imp. EM Shotgun | -9/Materials | Scanalyzed Robot Schematics ------------------ None Fabricated ------------ Nothing Alien Tech Used ----------------- None Achievements -------------- Safety First Challenges ------------ None Game ------ Seed NullFusionModule Manual? 0 Play Time 00:28:43 Cumulative 17.8 hours Start 2024.05.04 @ 21:36:55 End 2024.05.04 @ 22:02:29 Sessions 1 Manual Loads 0 Difficulty Rogue Special Mode None Game No. 68 Rogue 68 Adventurer 0 Explorer 0 Win Type - Total 0 Types 0/0/0/0/0/0/0/0/0 Lore% 14 Gallery% 25 Achievement% 21 Wizard Run 0 Options --------- Layout 2 ASCII 1 Keyboard 0 Movement Mouse Keybinds 0 Fullscreen 2 Font 24/Smallcaps Map View 50x44 Zoom Use 0% Tactical HUD 1 Map Filters NONE Filters SHIFT_HUE(155)|BRIGHTNESS(115) Steam 1 RUN: 5a68c91b-0733-4d6a-ba35-28cb24e76cc5